fUST/lending_fUST_20260511
["ID","MTS","AMOUNT","RATE_DAILY","PERIOD"]
[422030247,1778497839000,-300.0,5.115e-05,2]
[422030248,1778497839000,-300.0,5.115e-05,2]
[422030239,1778497839000,-300.0,4.998e-05,2]
[422030241,1778497839000,-300.0,4.998e-05,2]
[422030262,1778497839000,-720.0,5.738e-05,2]
[422030261,1778497839000,-420.0,5.498e-05,2]
[422030268,1778497839000,-244.0,7.637e-05,2]
[422030280,1778497839000,-151.5,0.0001041,2]
[422030283,1778497839000,-297.2682,0.0001041,2]
[422030287,1778497839000,-162.380719,0.00010563,2]
[422030288,1778497839000,-537.6845,0.00010563,2]
[422030298,1778497839000,-3602.28317333,0.00010758,2]
[422030289,1778497839000,-557.5788265,0.00010618,2]
[422030277,1778497839000,-1000.0,0.00010165,2]
[422030290,1778497839000,-177.11356233,0.00010657,2]
[422030294,1778497839000,-298.66592001,0.00010699,2]
[422030293,1778497839000,-640.12772815,0.00010673,2]
[422030295,1778497839000,-5230.0,0.00010756,2]
[422030296,1778497839000,-33621.50947028,0.00010758,2]
[422030297,1778497839000,-35060.13609923,0.00010758,2]
[422030266,1778497839000,-9027.04552284,7.6e-05,2]
[422030292,1778497839000,-17844.04073499,0.00010658,2]
[422030286,1778497839000,-151.0,0.00010563,2]
[422030291,1778497839000,-1077.64174544,0.00010658,2]
[422030284,1778497839000,-4664.9613464,0.00010481,2]
[422030281,1778497839000,-151.5,0.0001041,2]
[422030269,1778497839000,-1000.0,8.401e-05,2]
[422030265,1778497839000,-1000.0,6.943e-05,2]
[422030267,1778497839000,-1000.0,7.637e-05,2]
[422030270,1778497839000,-492.0,8.401e-05,2]
[422030273,1778497839000,-791.0,9.241e-05,2]
[422030274,1778497839000,-1106.84446818,0.0001,2]
[422030272,1778497839000,-1000.0,9.241e-05,2]
[422030285,1778497839000,-537.6845,0.00010563,2]
[422030275,1778497839000,-7072.79940802,0.0001,2]
[422030282,1778497839000,-204.14595728,0.0001041,2]
[422030279,1778497839000,-151.5,0.0001041,2]
[422030278,1778497839000,-1000.0,0.00010165,2]
[422030276,1778497839000,-160.0,0.0001,2]
[422030271,1778497839000,-263.75691638,8.699e-05,2]
[422030346,1778497844000,-500.0,0.00010958,2]
[422030350,1778497844000,-500.0,0.00010958,2]
[422030352,1778497844000,-500.0,0.00010958,2]
[422030349,1778497844000,-500.0,0.00010958,2]
[422030347,1778497844000,-500.0,0.00010958,2]
[422030348,1778497844000,-500.0,0.00010958,2]
[422030354,1778497844000,-716.82,0.00010958,2]
[422030341,1778497844000,-177.11356232,0.00010829,2]
[422030351,1778497844000,-500.0,0.00010958,2]
[422030355,1778497844000,-500.0,0.00010958,2]
[422030345,1778497844000,-232.9,0.00010958,2]
[422030344,1778497844000,-500.0,0.00010958,2]
[422030343,1778497844000,-384.54313171,0.00010958,2]
[422030342,1778497844000,-224.26686829,0.00010958,2]
[422030356,1778497844000,-500.0,0.00010958,2]
[422030353,1778497844000,-500.0,0.00010958,2]
[422030358,1778497844000,-500.0,0.00010958,2]
[422030371,1778497844000,-329.11027742,0.00010958,2]
[422030359,1778497844000,-1164.23,0.00010958,2]
[422030374,1778497844000,-500.0,0.00010958,2]
[422030376,1778497844000,-146.48860613,0.00010958,2]
[422030357,1778497844000,-500.0,0.00010958,2]
[422030373,1778497844000,-500.0,0.00010958,2]
[422030369,1778497844000,-1101.37,0.00010958,2]
[422030370,1778497844000,-500.0,0.00010958,2]
[422030372,1778497844000,-681.35,0.00010958,2]
[422030367,1778497844000,-500.0,0.00010958,2]
[422030375,1778497844000,-500.0,0.00010958,2]
[422030364,1778497844000,-2682.75126377,0.00010958,2]
[422030366,1778497844000,-174.27203036,0.00010958,2]
[422030361,1778497844000,-321.42,0.00010958,2]
[422030362,1778497844000,-1031.89631889,0.00010958,2]
[422030365,1778497844000,-302.62139999,0.00010958,2]
[422030360,1778497844000,-628.85,0.00010958,2]
[422030368,1778497844000,-500.0,0.00010958,2]
[422030363,1778497844000,-1335.28898699,0.00010958,2]
[422030390,1778497847000,-500.0,0.00010958,2]
[422030389,1778497847000,-1676.13,0.00010958,2]
[422030388,1778497847000,-500.0,0.00010958,2]
[422030382,1778497847000,-353.51139387,0.00010958,2]
[422030381,1778497847000,-1124.7618102,0.00010848,2]
[422030385,1778497847000,-500.0,0.00010958,2]
[422030384,1778497847000,-566.84,0.00010958,2]
[422030380,1778497847000,-3875.2381898,0.00010848,2]
[422030386,1778497847000,-520.43,0.00010958,2]
[422030383,1778497847000,-784.86,0.00010958,2]
[422030392,1778497847000,-712.46,0.00010958,2]
[422030387,1778497847000,-500.0,0.00010958,2]
[422030391,1778497847000,-1018.4,0.00010958,2]
[422030402,1778497847000,-84485.54424444,0.00011,2]
[422030403,1778497847000,-6692.46837274,0.00011,2]
[422030398,1778497847000,-500.0,0.00010958,2]
[422030397,1778497847000,-500.0,0.00010958,2]
[422030404,1778497847000,-17399.52406791,0.00011,2]
[422030395,1778497847000,-500.0,0.00010958,2]
[422030399,1778497847000,-500.0,0.00010958,2]
[422030401,1778497847000,-200.0,0.00011,2]
[422030396,1778497847000,-500.0,0.00010958,2]
[422030393,1778497847000,-500.0,0.00010958,2]
[422030400,1778497847000,-500.0,0.00010958,2]
[422030394,1778497847000,-500.0,0.00010958,2]
[422030409,1778498038000,1500.0,0.0001,30]
[422030410,1778498102000,4006.63554241,0.00019178,120]
[422030411,1778498112000,152.0,0.0001001,30]
[422030420,1778498742000,152.0,0.0001001,30]
[422030448,1778499032000,-1413.5521598,9.452e-05,2]
[422030443,1778499032000,-693.78496586,9.079e-05,2]
[422030446,1778499032000,-179.57075628,9.31e-05,2]
[422030445,1778499032000,-4883.94862454,9.171e-05,2]
[422030451,1778499032000,-300.0,0.00010421,2]
[422030444,1778499032000,-116.05137546,9.171e-05,2]
[422030449,1778499032000,-152.1384447,9.614e-05,2]
[422030450,1778499032000,-300.0,0.00010421,2]
[422030452,1778499032000,-300.0,0.00010421,2]
[422030454,1778499032000,-1200.0,0.00010421,2]
[422030447,1778499032000,-207.0013767,9.356e-05,2]
[422030456,1778499032000,-160.795364,0.00010422,2]
[422030562,1778499038000,-50906.68944094,0.00010858,2]
[422030551,1778499038000,-10594.34240873,0.00010858,2]
[422030553,1778499038000,-1751.73676825,0.00010858,2]
[422030559,1778499038000,-1699.37587879,0.00010858,2]
[422030547,1778499038000,-173.35,0.00010797,2]
[422030557,1778499038000,-833.44456871,0.00010858,2]
[422030564,1778499038000,-155.0,0.00010895,2]
[422030549,1778499038000,-160.0,0.000108,2]
[422030544,1778499038000,-163.52,0.00010631,2]
[422030541,1778499038000,-220.1,0.00010532,5]
[422030555,1778499038000,-10235.58178745,0.00010858,2]
[422030566,1778499038000,-250.703,0.00010895,2]
[422030569,1778499038000,-246.01854921,0.00010951,2]
[422030567,1778499038000,-183.21474115,0.00010898,2]
[422030580,1778499038000,-500.0,0.00010958,2]
[422030577,1778499038000,-500.0,0.00010958,2]
[422030573,1778499038000,-500.0,0.00010958,2]
[422030571,1778499038000,-396.18293663,0.00010957,2]
[422030575,1778499038000,-500.0,0.00010958,2]
[422030582,1778499038000,-500.0,0.00010958,2]
[422030583,1778499038000,-500.0,0.00010958,2]
[422030586,1778499038000,-500.0,0.00010958,2]
[422030585,1778499038000,-500.0,0.00010958,2]
[422030539,1778499038000,-183.21474116,0.00010531,2]
[422030578,1778499038000,-500.0,0.00010958,2]
[422030537,1778499038000,-23009.99449945,0.00010458,2]
[422030503,1778499038000,-500.0,0.00010457,2]
[422030527,1778499038000,-500.0,0.00010457,2]
[422030486,1778499038000,-5272.10516502,0.00010422,2]
[422030488,1778499038000,-151.0,0.00010422,2]
[422030490,1778499038000,-151.0,0.00010422,2]
[422030492,1778499038000,-151.0,0.00010422,2]
[422030494,1778499038000,-151.0,0.00010422,2]
[422030507,1778499038000,-500.0,0.00010457,2]
[422030509,1778499038000,-500.0,0.00010457,2]
[422030511,1778499038000,-500.0,0.00010457,2]
[422030505,1778499038000,-500.0,0.00010457,2]
[422030496,1778499038000,-500.0,0.00010457,2]
[422030500,1778499038000,-500.0,0.00010457,2]
[422030531,1778499038000,-500.0,0.00010457,2]
[422030498,1778499038000,-500.0,0.00010457,2]
[422030501,1778499038000,-500.0,0.00010457,2]
[422030512,1778499038000,-500.0,0.00010457,2]
[422030514,1778499038000,-500.0,0.00010457,2]
[422030520,1778499038000,-500.0,0.00010457,2]
[422030518,1778499038000,-500.0,0.00010457,2]
[422030516,1778499038000,-500.0,0.00010457,2]
[422030521,1778499038000,-500.0,0.00010457,2]
[422030533,1778499038000,-75880.50803988,0.00010458,2]
[422030523,1778499038000,-500.0,0.00010457,2]
[422030525,1778499038000,-488.65642979,0.00010457,2]
[422030529,1778499038000,-500.0,0.00010457,2]
[422030587,1778499038000,-500.0,0.00010958,2]
[422030589,1778499038000,-500.0,0.00010958,2]
[422030581,1778499038000,-500.0,0.00010958,2]
[422030591,1778499038000,-500.0,0.00010958,2]
[422030650,1778499038000,-500.0,0.00010958,2]
[422030647,1778499038000,-500.0,0.00010958,2]
[422030649,1778499038000,-500.0,0.00010958,2]
[422030655,1778499038000,-500.0,0.00010958,2]
[422030653,1778499038000,-500.0,0.00010958,2]
[422030651,1778499038000,-500.0,0.00010958,2]
[422030652,1778499038000,-500.0,0.00010958,2]
[422030656,1778499038000,-500.0,0.00010958,2]
[422030654,1778499038000,-500.0,0.00010958,2]
[422030658,1778499038000,-500.0,0.00010958,2]
[422030657,1778499038000,-500.0,0.00010958,2]
[422030659,1778499038000,-500.0,0.00010958,2]
[422030661,1778499038000,-500.0,0.00010958,2]
[422030662,1778499038000,-417.72774908,0.00010958,2]
[422030663,1778499038000,-500.0,0.00010958,2]
[422030660,1778499038000,-500.0,0.00010958,2]
[422030669,1778499038000,-500.0,0.00010958,2]
[422030665,1778499038000,-500.0,0.00010958,2]
[422030664,1778499038000,-500.0,0.00010958,2]
[422030668,1778499038000,-500.0,0.00010958,2]
[422030594,1778499038000,-500.0,0.00010958,2]
[422030667,1778499038000,-500.0,0.00010958,2]
[422030670,1778499038000,-500.0,0.00010958,2]
[422030672,1778499038000,-500.0,0.00010958,2]
[422030671,1778499038000,-500.0,0.00010958,2]
[422030646,1778499038000,-500.0,0.00010958,2]
[422030641,1778499038000,-500.0,0.00010958,2]
[422030666,1778499038000,-500.0,0.00010958,2]
[422030642,1778499038000,-500.0,0.00010958,2]
[422030593,1778499038000,-500.0,0.00010958,2]
[422030644,1778499038000,-500.0,0.00010958,2]
[422030596,1778499038000,-500.0,0.00010958,2]
[422030600,1778499038000,-500.0,0.00010958,2]
[422030602,1778499038000,-500.0,0.00010958,2]
[422030604,1778499038000,-500.0,0.00010958,2]
[422030606,1778499038000,-500.0,0.00010958,2]
[422030617,1778499038000,-500.0,0.00010958,2]
[422030611,1778499038000,-500.0,0.00010958,2]
[422030607,1778499038000,-500.0,0.00010958,2]
[422030609,1778499038000,-500.0,0.00010958,2]
[422030613,1778499038000,-500.0,0.00010958,2]
[422030598,1778499038000,-552.35778499,0.00010958,2]
[422030623,1778499038000,-1455.7259,0.00010958,2]
[422030633,1778499038000,-500.0,0.00010958,2]
[422030615,1778499038000,-500.0,0.00010958,2]
[422030632,1778499038000,-500.0,0.00010958,2]
[422030636,1778499038000,-500.0,0.00010958,2]
[422030634,1778499038000,-500.0,0.00010958,2]
[422030638,1778499038000,-500.0,0.00010958,2]
[422030630,1778499038000,-500.0,0.00010958,2]
[422030628,1778499038000,-500.0,0.00010958,2]
[422030625,1778499038000,-268.94948883,0.00010958,2]
[422030622,1778499038000,-424.17397357,0.00010958,2]
[422030640,1778499038000,-500.0,0.00010958,2]
[422030698,1778499039000,-500.0,0.00010958,2]
[422030700,1778499039000,-500.0,0.00010958,2]
[422030699,1778499039000,-500.0,0.00010958,2]
[422030701,1778499039000,-500.0,0.00010958,2]
[422030703,1778499039000,-500.0,0.00010958,2]
[422030705,1778499039000,-500.0,0.00010958,2]
[422030702,1778499039000,-500.0,0.00010958,2]
[422030704,1778499039000,-500.0,0.00010958,2]
[422030706,1778499039000,-500.0,0.00010958,2]
[422030714,1778499039000,-500.0,0.00010958,2]
[422030707,1778499039000,-500.0,0.00010958,2]
[422030709,1778499039000,-500.0,0.00010958,2]
[422030717,1778499039000,-500.0,0.00010958,2]
[422030715,1778499039000,-294.18444539,0.00010958,2]
[422030710,1778499039000,-500.0,0.00010958,2]
[422030716,1778499039000,-500.0,0.00010958,2]
[422030712,1778499039000,-500.0,0.00010958,2]
[422030713,1778499039000,-500.0,0.00010958,2]
[422030697,1778499039000,-500.0,0.00010958,2]
[422030711,1778499039000,-500.0,0.00010958,2]
[422030708,1778499039000,-608.38,0.00010958,2]
[422030696,1778499039000,-500.0,0.00010958,2]
[422030685,1778499039000,-500.0,0.00010958,2]
[422030694,1778499039000,-500.0,0.00010958,2]
[422030718,1778499039000,-631.16,0.00010958,2]
[422030674,1778499039000,-500.0,0.00010958,2]
[422030673,1778499039000,-500.0,0.00010958,2]
[422030675,1778499039000,-500.0,0.00010958,2]
[422030678,1778499039000,-500.0,0.00010958,2]
[422030677,1778499039000,-500.0,0.00010958,2]
[422030676,1778499039000,-500.0,0.00010958,2]
[422030681,1778499039000,-500.0,0.00010958,2]
[422030680,1778499039000,-500.0,0.00010958,2]
[422030679,1778499039000,-500.0,0.00010958,2]
[422030682,1778499039000,-500.0,0.00010958,2]
[422030683,1778499039000,-500.0,0.00010958,2]
[422030684,1778499039000,-500.0,0.00010958,2]
[422030686,1778499039000,-500.0,0.00010958,2]
[422030687,1778499039000,-500.0,0.00010958,2]
[422030688,1778499039000,-500.0,0.00010958,2]
[422030695,1778499039000,-500.0,0.00010958,2]
[422030689,1778499039000,-500.0,0.00010958,2]
[422030690,1778499039000,-500.0,0.00010958,2]
[422030692,1778499039000,-501.02668024,0.00010958,2]
[422030691,1778499039000,-500.0,0.00010958,2]
[422030693,1778499039000,-500.0,0.00010958,2]
[422030719,1778499039000,-500.0,0.00010958,2]
[422030735,1778499039000,-500.0,0.00010958,2]
[422030721,1778499039000,-500.0,0.00010958,2]
[422030749,1778499039000,-500.0,0.00010958,2]
[422030752,1778499039000,-500.0,0.00010958,2]
[422030748,1778499039000,-288.18,0.00010958,2]
[422030751,1778499039000,-501.16050215,0.00010958,2]
[422030753,1778499039000,-500.0,0.00010958,2]
[422030750,1778499039000,-500.0,0.00010958,2]
[422030754,1778499039000,-500.0,0.00010958,2]
[422030757,1778499039000,-488.81010946,0.00010958,2]
[422030760,1778499039000,-500.0,0.00010958,2]
[422030746,1778499039000,-500.0,0.00010958,2]
[422030759,1778499039000,-500.0,0.00010958,2]
[422030761,1778499039000,-500.46594864,0.00010958,2]
[422030766,1778499039000,-500.0,0.00010958,2]
[422030758,1778499039000,-500.0,0.00010958,2]
[422030763,1778499039000,-500.0,0.00010958,2]
[422030765,1778499039000,-501.50172897,0.00010958,2]
[422030764,1778499039000,-500.71604441,0.00010958,2]
[422030767,1778499039000,-500.0,0.00010958,2]
[422030768,1778499039000,-247.11266163,0.00010958,2]
[422030720,1778499039000,-500.0,0.00010958,2]
[422030762,1778499039000,-500.0,0.00010958,2]
[422030747,1778499039000,-500.0,0.00010958,2]
[422030755,1778499039000,-103.53989054,0.00010958,2]
[422030744,1778499039000,-500.0,0.00010958,2]
[422030722,1778499039000,-500.0,0.00010958,2]
[422030745,1778499039000,-500.0,0.00010958,2]
[422030723,1778499039000,-500.0,0.00010958,2]
[422030726,1778499039000,-500.0,0.00010958,2]
[422030725,1778499039000,-500.0,0.00010958,2]
[422030727,1778499039000,-500.0,0.00010958,2]
[422030728,1778499039000,-500.0,0.00010958,2]
[422030730,1778499039000,-500.0,0.00010958,2]
[422030729,1778499039000,-500.0,0.00010958,2]
[422030731,1778499039000,-500.0,0.00010958,2]
[422030732,1778499039000,-500.0,0.00010958,2]
[422030724,1778499039000,-500.0,0.00010958,2]
[422030739,1778499039000,-500.0,0.00010958,2]
[422030734,1778499039000,-500.0,0.00010958,2]
[422030737,1778499039000,-500.0,0.00010958,2]
[422030736,1778499039000,-595.47,0.00010958,2]
[422030740,1778499039000,-500.0,0.00010958,2]
[422030738,1778499039000,-500.0,0.00010958,2]
[422030742,1778499039000,-500.0,0.00010958,2]
[422030743,1778499039000,-500.0,0.00010958,2]
[422030741,1778499039000,-500.0,0.00010958,2]
[422030733,1778499039000,-500.0,0.00010958,2]
[422030781,1778499040000,-500.0,0.00010958,2]
[422030782,1778499040000,-500.0,0.00010958,2]
[422030783,1778499040000,-500.0,0.00010958,2]
[422030788,1778499040000,-500.0,0.00010958,2]
[422030785,1778499040000,-500.0,0.00010958,2]
[422030786,1778499040000,-500.0,0.00010958,2]
[422030789,1778499040000,-500.0,0.00010958,2]
[422030784,1778499040000,-564.15,0.00010958,2]
[422030778,1778499040000,-500.0,0.00010958,2]
[422030776,1778499040000,-500.0,0.00010958,2]
[422030773,1778499040000,-500.0,0.00010958,2]
[422030775,1778499040000,-500.0,0.00010958,2]
[422030770,1778499040000,-500.0,0.00010958,2]
[422030774,1778499040000,-500.0,0.00010958,2]
[422030772,1778499040000,-500.0,0.00010958,2]
[422030780,1778499040000,-500.0,0.00010958,2]
[422030771,1778499040000,-501.69391113,0.00010958,2]
[422030769,1778499040000,-500.0,0.00010958,2]
[422030793,1778499040000,-500.0,0.00010958,2]
[422030777,1778499040000,-500.0,0.00010958,2]
[422030791,1778499040000,-500.0,0.00010958,2]
[422030779,1778499040000,-500.0,0.00010958,2]
[422030787,1778499040000,-500.0,0.00010958,2]
[422030790,1778499040000,-500.0,0.00010958,2]
[422030812,1778499040000,-416.84447949,0.00010958,2]
[422030810,1778499040000,-500.0,0.00010958,2]
[422030811,1778499040000,-500.0,0.00010958,2]
[422030809,1778499040000,-587.38,0.00010958,2]
[422030807,1778499040000,-648.55,0.00010958,2]
[422030806,1778499040000,-500.0,0.00010958,2]
[422030801,1778499040000,-500.0,0.00010958,2]
[422030805,1778499040000,-500.0,0.00010958,2]
[422030800,1778499040000,-539.43,0.00010958,2]
[422030808,1778499040000,-500.0,0.00010958,2]
[422030797,1778499040000,-500.0,0.00010958,2]
[422030803,1778499040000,-500.0,0.00010958,2]
[422030804,1778499040000,-767.6,0.00010958,2]
[422030802,1778499040000,-500.0,0.00010958,2]
[422030798,1778499040000,-500.0,0.00010958,2]
[422030794,1778499040000,-500.0,0.00010958,2]
[422030796,1778499040000,-500.0,0.00010958,2]
[422030795,1778499040000,-151.0,0.00010958,2]
[422030799,1778499040000,-500.0,0.00010958,2]
[422030792,1778499040000,-500.0,0.00010958,2]
[422030897,1778499043000,-500.0,0.00010958,2]
[422030898,1778499043000,-500.0,0.00010958,2]
[422030909,1778499043000,-500.0,0.00010958,2]
[422030901,1778499043000,-391.45874631,0.00010958,2]
[422030905,1778499043000,-1152.95,0.00010958,2]
[422030914,1778499043000,-500.0,0.00010958,2]
[422030911,1778499043000,-500.0,0.00010958,2]
[422030915,1778499043000,-474.84974629,0.00010958,2]
[422030907,1778499043000,-500.0,0.00010958,2]
[422030892,1778499043000,-2170.37,0.00010958,2]
[422030903,1778499043000,-108.54125369,0.00010958,2]
[422030880,1778499043000,-1224.02,0.00010958,2]
[422030867,1778499043000,-500.0,0.00010958,2]
[422030894,1778499043000,-500.0,0.00010958,2]
[422030888,1778499043000,-500.0,0.00010958,2]
[422030882,1778499043000,-672.45,0.00010958,2]
[422030881,1778499043000,-500.0,0.00010958,2]
[422030878,1778499043000,-191.3480581,0.00010958,2]
[422030877,1778499043000,-308.6519419,0.00010958,2]
[422030875,1778499043000,-348.8965366,0.00010958,2]
[422030869,1778499043000,-623.76,0.00010958,2]
[422030865,1778499043000,-550.85,0.00010958,2]
[422030912,1778499043000,-544.68791605,0.00010958,2]
[422030872,1778499043000,-151.1034634,0.00010958,2]
[422030870,1778499043000,-500.0,0.00010958,2]
[422030863,1778499043000,-83.15552051,0.00010958,2]
[422030890,1778499043000,-500.0,0.00010958,2]
[422030916,1778499043000,-786.86,0.00010958,2]
[422030930,1778499043000,-725.65212514,0.00010958,2]
[422030917,1778499043000,-500.0,0.00010958,2]
[422030945,1778499043000,-410.26130039,0.00010958,2]
[422030947,1778499043000,-462.26130039,0.00010958,2]
[422030946,1778499043000,-89.73869961,0.00010958,2]
[422030943,1778499043000,-500.0,0.00010958,2]
[422030944,1778499043000,-500.0,0.00010958,2]
[422030942,1778499043000,-500.0,0.00010958,2]
[422030941,1778499043000,-500.0,0.00010958,2]
[422030936,1778499043000,-500.0,0.00010958,2]
[422030913,1778499043000,-500.0,0.00010958,2]
[422030938,1778499043000,-500.0,0.00010958,2]
[422030937,1778499043000,-745.27,0.00010958,2]
[422030935,1778499043000,-500.0,0.00010958,2]
[422030934,1778499043000,-500.0,0.00010958,2]
[422030940,1778499043000,-500.0,0.00010958,2]
[422030932,1778499043000,-500.0,0.00010958,2]
[422030919,1778499043000,-605.72,0.00010958,2]
[422030939,1778499043000,-1860.87,0.00010958,2]
[422030921,1778499043000,-500.0,0.00010958,2]
[422030929,1778499043000,-102.70787486,0.00010958,2]
[422030928,1778499043000,-500.0,0.00010958,2]
[422030927,1778499043000,-561.25,0.00010958,2]
[422030923,1778499043000,-500.0,0.00010958,2]
[422030926,1778499043000,-500.0,0.00010958,2]
[422030925,1778499043000,-500.0,0.00010958,2]
[422030931,1778499043000,-500.0,0.00010958,2]
[422030933,1778499043000,-500.0,0.00010958,2]
[422030924,1778499043000,-863.11,0.00010958,2]
[422030949,1778499044000,-37.73869961,0.00010958,2]
[422030960,1778499044000,-500.0,0.00010958,2]
[422030951,1778499044000,-500.0,0.00010958,2]
[422030948,1778499044000,-151.0,0.00010422,2]
[422030964,1778499044000,-500.0,0.00010958,2]
[422030956,1778499044000,-813.23633527,0.00010958,2]
[422030962,1778499044000,-500.0,0.00010958,2]
[422030950,1778499044000,-500.0,0.00010958,2]
[422030958,1778499044000,-441.61399986,0.00010958,2]
[422030973,1778499044000,-152.0,0.00010967,2]
[422030966,1778499044000,-500.0,0.00010958,2]
[422030968,1778499044000,-500.0,0.00010958,2]
[422030969,1778499044000,-500.0,0.00010958,2]
[422030970,1778499044000,-500.0,0.00010958,2]
[422030971,1778499044000,-500.0,0.00010958,2]
[422030972,1778499044000,-500.0,0.00010958,2]
[422030974,1778499044000,-1624.88709714,0.00010987,2]
[422030975,1778499044000,-1197.10362736,0.00010987,2]
[422030953,1778499044000,-12.96966487,0.00010958,2]
[422030996,1778499046000,-259.23402087,0.00010998,5]
[422030994,1778499046000,-1273.1483218,0.00010987,2]
[422030992,1778499046000,-40796.4320506,0.00010987,2]
[422031000,1778499046000,-500.0,0.00010958,2]
[422031001,1778499046000,-6699.29956112,0.00011,2]
[422030999,1778499046000,-35588.2731625,0.00011,2]
[422031017,1778500131000,-279.61254406,2.981e-05,2]
[422031075,1778500232000,-384.768375,2.921e-05,2]
[422031191,1778500238000,-500.0,8.411e-05,2]
[422031171,1778500238000,-823.0,7.019e-05,2]
[422031173,1778500238000,-500.0,8.411e-05,2]
[422031177,1778500238000,-500.0,8.411e-05,2]
[422031178,1778500238000,-500.0,8.411e-05,2]
[422031175,1778500238000,-500.0,8.411e-05,2]
[422031181,1778500238000,-500.0,8.411e-05,2]
[422031187,1778500238000,-220.64673228,8.411e-05,2]
[422031189,1778500238000,-609.85071442,8.411e-05,2]
[422031195,1778500238000,-500.0,8.411e-05,2]
[422031206,1778500238000,-500.0,8.411e-05,2]
[422031185,1778500238000,-500.0,8.411e-05,2]
[422031208,1778500238000,-500.0,8.411e-05,2]
[422031199,1778500238000,-500.0,8.411e-05,2]
[422031204,1778500238000,-608.21769416,8.411e-05,2]
[422031201,1778500238000,-500.0,8.411e-05,2]
[422031202,1778500238000,-500.0,8.411e-05,2]
[422031183,1778500238000,-500.0,8.411e-05,2]
[422031210,1778500238000,-472.31582315,8.411e-05,2]
[422031212,1778500238000,-500.0,8.411e-05,2]
[422031193,1778500238000,-185.58313279,8.411e-05,2]
[422031162,1778500238000,-2351.0,6.38e-05,2]
[422031155,1778500238000,-420.0,5.801e-05,2]
[422031168,1778500238000,-246.90395506,6.966e-05,2]
[422031126,1778500238000,-4615.231625,2.921e-05,2]
[422031130,1778500238000,-181.54702578,2.966e-05,2]
[422031128,1778500238000,-279.61236955,2.951e-05,2]
[422031134,1778500238000,-177.309435,3.011e-05,2]
[422031132,1778500238000,-189.06438381,2.981e-05,2]
[422031136,1778500238000,-187.345817,4.772e-05,2]
[422031138,1778500238000,-214.22549042,4.966e-05,2]
[422031140,1778500238000,-1200.0,5.273e-05,2]
[422031142,1778500238000,-300.0,5.274e-05,2]
[422031164,1778500238000,-587.0,6.381e-05,2]
[422031146,1778500238000,-300.0,5.274e-05,2]
[422031148,1778500238000,-51774.2233636,5.275e-05,2]
[422031153,1778500238000,-420.0,5.801e-05,2]
[422031149,1778500238000,-7557.1234712,5.681e-05,2]
[422031213,1778500238000,-500.0,8.411e-05,2]
[422031151,1778500238000,-1680.0,5.8e-05,2]
[422031159,1778500238000,-219.9791561,6.322e-05,2]
[422031158,1778500238000,-177.309435,5.905e-05,2]
[422031166,1778500238000,-300.0,6.381e-05,2]
[422031170,1778500238000,-2147.0,7.018e-05,2]
[422031144,1778500238000,-300.0,5.274e-05,2]
[422031216,1778500238000,-501.8980786,8.527e-05,2]
[422031197,1778500238000,-500.0,8.411e-05,2]
[422031215,1778500238000,-29098.6438195,8.412e-05,2]
[422031244,1778500238000,-580.19698312,0.00010256,2]
[422031243,1778500238000,-580.19698312,0.00010256,2]